bitfinex/quotes_BTCUSD_20240611
["timestamp","ask_amount","ask_price","bid_price","bid_amount"]
[1718141463235,1.497418,67278.0,67270.0,0.0779]
[1718141463957,1.511418,67278.0,67270.0,0.0779]
[1718141464420,1.591418,67278.0,67270.0,0.0779]
[1718141464647,1.51922568,67278.0,67270.0,0.0779]
[1718141464872,1.59122568,67278.0,67270.0,0.0779]
[1718141467088,1.74222568,67278.0,67270.0,0.0779]
[1718141467312,2.11677868,67278.0,67270.0,0.0779]
[1718141467901,2.04477868,67278.0,67270.0,0.0779]
[1718141468151,2.11677868,67278.0,67270.0,0.0779]
[1718141468369,2.11679484,67278.0,67270.0,0.0779]
[1718141469227,2.42513128,67278.0,67270.0,0.0779]
[1718141470703,2.35313128,67278.0,67270.0,0.0779]
[1718141470922,2.42513128,67278.0,67270.0,0.0779]
[1718141471976,2.42518756,67278.0,67270.0,0.0779]
[1718141472513,2.27418756,67278.0,67270.0,0.0779]
[1718141473106,2.27418397,67278.0,67270.0,0.0779]
[1718141474315,2.29236617,67278.0,67270.0,0.0779]
[1718141474739,2.21236617,67278.0,67270.0,0.0779]
[1718141474939,2.21236617,67278.0,67269.0,0.155]
[1718141475169,2.21236617,67278.0,67274.0,0.0791]
[1718141475520,2.21315303,67278.0,67274.0,0.0791]
[1718141476063,2.21215303,67278.0,67274.0,0.0791]
[1718141477513,2.14014952,67278.0,67274.0,0.0791]
[1718141477722,2.21214952,67278.0,67274.0,0.0791]
[1718141477929,2.14014952,67278.0,67274.0,0.0791]
[1718141478138,2.21214952,67278.0,67274.0,0.0791]
[1718141479863,2.21213416,67278.0,67274.0,0.0791]
[1718141481533,2.2072305,67278.0,67274.0,0.2418]
[1718141481854,2.20723772,67278.0,67274.0,0.2418]
[1718141484023,2.20723823,67278.0,67274.0,0.2418]
[1718141485479,2.27390249,67278.0,67274.0,0.2418]
[1718141487464,2.31839413,67278.0,67274.0,0.2418]
[1718141489618,2.27390249,67278.0,67274.0,0.2418]
[1718141490469,2.34063996,67278.0,67274.0,0.2418]
[1718141491248,2.44063996,67278.0,67274.0,0.0791]
[1718141491456,2.46288578,67278.0,67274.0,0.0791]
[1718141491820,2.46288578,67278.0,67272.0,0.0831]
[1718141492531,2.76015878,67278.0,67272.0,0.0831]
[1718141493370,2.7601602,67278.0,67272.0,0.0831]
[1718141495625,2.78240603,67278.0,67272.0,0.0831]
[1718141495853,0.75326,67271.0,67270.0,0.2348]
[1718141496071,1.43707061,67271.0,67270.0,0.2348]
[1718141496249,1.43707061,67271.0,67270.0,0.24759315]
[1718141496489,1.43707061,67271.0,67270.0,0.2348]
[1718141496931,1.43707061,67271.0,67261.0,0.000946]
[1718141496932,0.456016,67262.0,67261.0,0.000946]
[1718141497139,1.30582661,67262.0,67261.0,0.000946]
[1718141497362,1.76208146,67262.0,67261.0,0.235746]
[1718141497583,1.76210624,67262.0,67261.0,0.235746]
[1718141497822,1.80669277,67262.0,67261.0,0.235746]
[1718141498033,1.83135949,67262.0,67261.0,0.235746]
[1718141498367,1.81103724,67262.0,67261.0,0.235746]
[1718141499347,1.81104595,67262.0,67261.0,0.079846]
[1718141499567,1.81104595,67262.0,67261.0,0.000946]
[1718141499772,1.91104595,67262.0,67261.0,0.000946]
[1718141499979,1.60263463,67262.0,67261.0,0.000946]
[1718141500189,1.96629523,67262.0,67261.0,0.000946]
[1718141500400,1.93475975,67262.0,67261.0,0.000946]
[1718141500600,1.95229523,67262.0,67261.0,0.000946]
[1718141500809,1.90775975,67262.0,67261.0,0.000946]
[1718141501063,1.93580168,67262.0,67261.0,0.000946]
[1718141501487,1.92180168,67262.0,67261.0,0.000946]
[1718141501702,1.93580168,67262.0,67261.0,0.000946]
[1718141501906,1.92180168,67262.0,67261.0,0.000946]
[1718141502116,1.92180751,67262.0,67261.0,0.000946]
[1718141503622,1.93580751,67262.0,67261.0,0.000946]
[1718141503843,1.92180751,67262.0,67261.0,0.000946]
[1718141504161,1.93626821,67262.0,67261.0,0.000946]
[1718141505674,1.00636085,67254.0,67253.0,0.0821]
[1718141505892,1.36992384,67254.0,67253.0,0.0821]
[1718141506110,0.01,67243.0,67242.0,0.009427]
[1718141506324,0.22631993,67243.0,67242.0,0.009427]
[1718141506547,0.27869302,67243.0,67242.0,0.009427]
[1718141506762,0.37869302,67243.0,67242.0,0.251727]
[1718141507187,0.37869302,67243.0,67242.0,0.26463252]
[1718141507413,0.82483502,67243.0,67242.0,0.26463252]
[1718141507878,0.83083502,67243.0,67242.0,0.26463252]
[1718141508521,0.95152232,67243.0,67242.0,0.251727]
[1718141509178,0.83083502,67243.0,67242.0,0.251727]
[1718141509386,0.83883502,67243.0,67242.0,0.251727]
[1718141509596,0.83283502,67243.0,67242.0,0.251727]
[1718141510074,0.83583502,67243.0,67242.0,0.251727]
[1718141510302,1.13326302,67243.0,67242.0,0.251727]
[1718141510532,1.14626302,67243.0,67242.0,0.251727]
[1718141511200,1.34026302,67243.0,67242.0,0.251727]
[1718141511611,1.46079869,67243.0,67242.0,0.251727]
[1718141512055,1.26679869,67243.0,67242.0,0.251727]
[1718141512465,1.46104854,67243.0,67242.0,0.251727]
[1718141512679,1.45004854,67243.0,67242.0,0.251727]
[1718141513139,1.26904854,67243.0,67242.0,0.251727]
[1718141513579,1.25604854,67243.0,67242.0,0.251727]
[1718141513852,1.27004854,67243.0,67242.0,0.251727]
[1718141514501,1.27004854,67243.0,67242.0,0.009427]
[1718141514722,1.27004854,67243.0,67242.0,0.250527]
[1718141514955,1.46404854,67243.0,67242.0,0.250527]
[1718141519563,1.48186701,67243.0,67242.0,0.250527]
[1718141520398,1.48186701,67243.0,67239.0,0.000946]
[1718141520399,1.68395385,67240.0,67239.0,1e-06]
[1718141520599,0.36291085,67230.0,67229.0,0.009427]
[1718141520759,0.57923078,67230.0,67229.0,0.009427]
[1718141520961,0.82511612,67230.0,67229.0,0.009427]
[1718141521170,0.85878123,67230.0,67229.0,0.009427]
[1718141521385,1.89998223,67230.0,67229.0,0.009427]
[1718141521610,1.60249623,67230.0,67229.0,0.009427]
[1718141521877,1.56883112,67230.0,67229.0,0.009427]
[1718141523465,1.49683112,67230.0,67229.0,0.009427]
[1718141523674,1.58283112,67230.0,67229.0,0.009427]
[1718141523882,1.59683112,67230.0,67229.0,0.009427]
[1718141525087,1.63062122,67230.0,67229.0,0.009427]
[1718141525357,2.08741122,67230.0,67229.0,0.009427]
[1718141525921,2.83041122,67230.0,67229.0,0.009427]
[1718141526139,2.49492522,67230.0,67229.0,0.009427]
[1718141526291,2.78877838,67230.0,67229.0,0.009427]
[1718141526517,2.50529238,67230.0,67229.0,0.009427]
[1718141526924,2.47150228,67230.0,67229.0,0.009427]
[1718141527130,2.50535098,67230.0,67229.0,0.009427]
[1718141527574,2.49135098,67230.0,67229.0,0.009427]
[1718141527749,2.50535098,67230.0,67229.0,0.009427]
[1718141528377,0.743815,67221.0,67220.0,0.0786]
[1718141528633,1.46920078,67221.0,67220.0,0.0786]
[1718141528810,1.27520078,67221.0,67220.0,0.0786]
[1718141529138,1.34791643,67221.0,67220.0,0.0786]
[1718141529733,1.36191643,67221.0,67220.0,0.0786]
[1718141529934,1.16791643,67221.0,67220.0,0.0786]
[1718141530085,1.18191643,67221.0,67220.0,0.0786]
[1718141530291,1.23179088,67221.0,67220.0,0.0786]
[1718141530494,1.30379088,67221.0,67220.0,0.0786]
[1718141536535,1.30427933,67221.0,67220.0,0.0786]
[1718141537553,0.937825,67220.0,67219.0,0.009427]
[1718141537804,1.40741935,67220.0,67219.0,0.009427]
[1718141538759,1.42111755,67220.0,67219.0,0.009427]
[1718141539461,1.40711755,67220.0,67219.0,0.009427]
[1718141539888,1.42111755,67220.0,67219.0,0.009427]
[1718141540087,1.43411755,67220.0,67219.0,0.009427]
[1718141540286,1.42011755,67220.0,67219.0,0.009427]
[1718141540539,1.40711755,67220.0,67219.0,0.009427]
[1718141540715,1.42111755,67220.0,67219.0,0.009427]
[1718141540919,1.4211065,67220.0,67219.0,0.009427]
[1718141541894,1.4351065,67220.0,67219.0,0.009427]
[1718141542448,1.4351065,67220.0,67219.0,0.249727]
[1718141543392,1.46885266,67220.0,67219.0,0.249727]
[1718141544017,1.34685266,67220.0,67219.0,0.249727]
[1718141544218,1.54085266,67220.0,67219.0,0.249727]
[1718141544834,1.34685266,67220.0,67219.0,0.249727]
[1718141546101,1.3131065,67220.0,67219.0,0.249727]
[1718141546309,1.34688193,67220.0,67219.0,0.249727]
[1718141547157,1.27488193,67220.0,67219.0,0.249727]
[1718141547334,1.34688193,67220.0,67219.0,0.249727]
[1718141548385,1.34551313,67220.0,67219.0,0.009427]
[1718141552001,1.34551313,67220.0,67219.0,0.088727]
[1718141552686,1.34550944,67220.0,67219.0,0.088727]
[1718141552904,1.34550944,67220.0,67219.0,0.240327]
[1718141554279,1.34550944,67220.0,67219.0,0.088727]
[1718141554688,1.34474178,67220.0,67219.0,0.088727]
[1718141555833,1.58634178,67220.0,67219.0,0.009427]
[1718141556152,1.34474178,67220.0,67219.0,0.009427]
[1718141558573,1.53874178,67220.0,67219.0,0.009427]
[1718141559674,1.34474178,67220.0,67219.0,0.009427]
[1718141561030,1.27274178,67220.0,67219.0,0.009427]
[1718141561231,1.16983026,67220.0,67219.0,0.247927]
[1718141562041,0.33045033,67220.0,67219.0,0.30664899]
[1718141562380,0.18168533,67220.0,67219.0,0.3735362]
[1718141562563,0.028,67220.0,67219.0,0.3735362]
[1718141562737,0.028,67220.0,67219.0,0.3413286]
[1718141563216,0.148758,67224.0,67220.0,0.2445]
[1718141563503,0.148758,67224.0,67223.0,0.3227373]
[1718141564015,0.148747,67228.0,67227.0,0.28672199]
[1718141564255,0.148747,67228.0,67227.0,0.29272199]
[1718141564630,0.148747,67228.0,67227.0,0.30788153]
[1718141564833,0.248747,67228.0,67227.0,0.30788153]
[1718141566140,0.248747,67228.0,67227.0,0.30188153]
[1718141566366,0.251747,67228.0,67227.0,0.30188153]
[1718141566579,0.2766217,67228.0,67227.0,0.30188153]
[1718141566817,0.256747,67228.0,67227.0,0.30188153]
[1718141567207,0.248747,67228.0,67227.0,0.30188153]
[1718141567947,0.251747,67228.0,67227.0,0.30188153]
[1718141568519,0.256747,67228.0,67227.0,0.30188153]
[1718141572138,0.256747,67228.0,67227.0,0.30788153]
[1718141572347,0.256747,67228.0,67227.0,0.30188153]
[1718141572965,0.256747,67228.0,67227.0,0.32028153]
[1718141584073,0.156747,67228.0,67227.0,0.32028153]
[1718141595038,0.146747,67228.0,67227.0,0.32028153]
[1718141596688,0.145747,67228.0,67227.0,0.32028153]
[1718141598671,0.145747,67228.0,67227.0,0.32122753]
[1718141600497,0.24909423,67228.0,67227.0,0.32122753]
[1718141602412,0.24945487,67228.0,67227.0,0.32122753]
[1718141603208,0.24948665,67228.0,67227.0,0.32122753]
[1718141614048,0.24898726,67228.0,67227.0,0.32122753]
[1718141614991,0.24858386,67228.0,67227.0,0.32122753]
[1718141617506,0.145747,67228.0,67227.0,0.32122753]
[1718141617708,0.24857668,67228.0,67227.0,0.32122753]
[1718141625980,0.145747,67228.0,67227.0,0.32122753]
[1718141630892,0.146607,67228.0,67227.0,0.32122753]
[1718141634303,0.146607,67228.0,67227.0,0.37365329]
[1718141634517,0.146607,67228.0,67227.0,0.4651686]
[1718141634768,0.00886,67228.0,67227.0,0.5543386]
[1718141635000,0.00886,67228.0,67227.0,0.61284268]
[1718141635212,0.00886,67228.0,67227.0,0.79626124]
[1718141635440,0.00386,67228.0,67227.0,0.79626124]
[1718141636293,0.00086,67228.0,67227.0,0.72937015]
[1718141636502,0.00086,67228.0,67227.0,0.89669008]
[1718141636710,0.00186,67228.0,67227.0,0.89669008]
[1718141636921,0.00186,67228.0,67227.0,1.05309008]
[1718141637122,0.00186,67228.0,67227.0,1.20183908]
[1718141637504,0.00186,67228.0,67227.0,1.21183908]
[1718141637711,0.00186,67228.0,67227.0,1.20183908]
[1718141637893,0.00086,67228.0,67227.0,1.34565674]
[1718141638295,0.00186,67228.0,67227.0,1.20183908]
[1718141638499,0.00186,67228.0,67227.0,1.21183908]
[1718141638729,0.00186,67228.0,67227.0,1.71183908]
[1718141638932,0.00086,67228.0,67227.0,1.653335]
[1718141639090,0.00186,67228.0,67227.0,1.71185025]
[1718141639296,0.00286,67228.0,67227.0,1.71185025]
[1718141639580,0.00186,67228.0,67227.0,1.71185025]
[1718141639968,0.00286,67228.0,67227.0,1.71185025]
[1718141640181,0.00286,67228.0,67227.0,1.71299776]
[1718141643706,0.00286,67228.0,67227.0,1.65448251]
[1718141644106,0.00286,67228.0,67227.0,1.76564599]
[1718141644673,0.00286,67228.0,67227.0,1.76569201]
[1718141645340,0.00286,67228.0,67227.0,1.65452853]
[1718141645953,0.00286,67228.0,67227.0,1.53680753]
[1718141646232,0.00286,67228.0,67227.0,1.65452152]
[1718141647336,0.00286,67228.0,67227.0,1.74339601]
[1718141650119,0.00286,67228.0,67227.0,1.67139601]
[1718141650327,0.00286,67228.0,67227.0,1.74339601]
[1718141650740,0.00286,67228.0,67227.0,1.84339601]
[1718141655719,0.00286,67228.0,67227.0,2.263184]
[1718141655917,0.00286,67228.0,67227.0,2.563184]
[1718141656127,0.00286,67228.0,67227.0,2.58542092]
[1718141656331,0.00286,67228.0,67227.0,2.46961149]
[1718141656743,0.00286,67228.0,67227.0,2.76711049]
[1718141656864,0.00186,67228.0,67227.0,2.76711049]
[1718141657071,0.00286,67228.0,67227.0,3.01020122]
[1718141657266,0.00286,67228.0,67227.0,2.77111049]
[1718141657523,0.00186,67228.0,67227.0,2.77111049]
[1718141657716,0.00086,67228.0,67227.0,2.76711049]
[1718141658045,0.00286,67228.0,67227.0,2.78011049]
[1718141658236,0.00086,67229.0,67228.0,0.8825543]
[1718141658461,0.00086,67229.0,67228.0,1.88405476]
[1718141658660,0.2446,67258.0,67257.0,0.0782373]
[1718141658867,0.0792,67258.0,67257.0,0.0782373]
[1718141659067,0.0792,67258.0,67257.0,0.09526583]
[1718141659449,0.0792,67258.0,67257.0,0.08175052]
[1718141660654,0.2446,67260.0,67259.0,0.0782373]
[1718141660858,0.2446,67260.0,67259.0,0.06472199]
[1718141661071,0.2446,67260.0,67259.0,0.0782373]
[1718141661338,0.2446,67260.0,67259.0,0.09526583]
[1718141661511,0.2446,67260.0,67259.0,0.07575052]
[1718141662186,0.2446,67260.0,67259.0,0.07675052]
[1718141662825,0.0761,67265.0,67264.0,0.05872199]
[1718141663267,0.0761,67265.0,67264.0,0.0757171]
[1718141664260,0.0761,67265.0,67264.0,0.0827171]
[1718141664261,0.0891,67265.0,67264.0,0.0827171]
[1718141664478,0.0951,67265.0,67264.0,0.0837171]
[1718141664680,0.0951,67265.0,67264.0,0.13554654]
[1718141664921,0.0821,67265.0,67264.0,0.12854654]
[1718141665328,0.0841,67265.0,67264.0,0.12854654]
[1718141665581,0.008,67265.0,67264.0,0.13454654]
[1718141666430,0.008,67265.0,67264.0,0.14806185]
[1718141666632,0.008,67265.0,67264.0,0.13454654]
[1718141668617,0.008,67265.0,67264.0,0.14806185]
[1718141670088,0.008,67265.0,67264.0,0.13454654]
[1718141670686,0.008,67265.0,67264.0,0.14806185]
[1718141670830,0.008,67265.0,67264.0,0.13454654]
[1718141671473,0.008,67265.0,67264.0,0.14806185]
[1718141672120,0.008,67265.0,67264.0,0.13454654]
[1718141673888,0.008,67265.0,67264.0,0.14806185]
[1718141674707,0.008,67265.0,67264.0,0.13454654]
[1718141675691,0.008,67265.0,67264.0,0.14806185]
[1718141677214,0.008,67265.0,67264.0,0.13454654]
[1718141677857,0.008,67265.0,67264.0,0.36803647]
[1718141678214,0.008,67265.0,67264.0,0.40455178]
[1718141679666,0.006,67265.0,67264.0,0.40455178]
[1718141679844,0.006,67265.0,67264.0,0.64215178]
[1718141680481,0.006,67265.0,67264.0,0.63815178]
[1718141680699,0.0786,67269.0,67268.0,0.05872199]
[1718141681131,0.0786,67269.0,67268.0,0.08154036]
[1718141681337,0.0786,67269.0,67268.0,0.0874861]
[1718141681957,0.0786,67269.0,67268.0,0.0884861]
[1718141682954,0.0796,67269.0,67268.0,0.0884861]
[1718141685169,0.001,67269.0,67268.0,0.0884861]
[1718141689374,0.001,67269.0,67268.0,0.1776561]
[1718141690182,0.001,67269.0,67268.0,0.19117141]
[1718141697704,0.00186,67269.0,67268.0,0.19117141]
[1718141697881,0.00186,67269.0,67268.0,0.30981429]
[1718141698081,0.00186,67269.0,67268.0,0.30981293]
[1718141698840,0.00186,67269.0,67268.0,0.38808622]
[1718141699075,0.00186,67269.0,67268.0,0.41108622]
[1718141700249,0.00186,67269.0,67268.0,0.39757091]
[1718141700656,0.00186,67269.0,67268.0,0.41108622]
[1718141701059,0.00186,67269.0,67268.0,0.39790909]
[1718141701279,0.00186,67269.0,67268.0,0.3136358]
[1718141701280,0.24446,67269.0,67268.0,0.3136358]
[1718141701481,0.24446,67269.0,67268.0,0.30769006]
[1718141702084,0.24446,67269.0,67268.0,0.18871036]
[1718141702309,0.24446,67269.0,67268.0,0.32722831]
[1718141702646,0.24446,67269.0,67268.0,0.19471036]
[1718141703201,0.08456,67269.0,67268.0,0.19471036]
[1718141703762,0.08456,67269.0,67268.0,0.32706366]
[1718141703969,0.08456,67269.0,67268.0,0.20822567]
[1718141707424,0.00186,67269.0,67268.0,0.20822567]
[1718141712363,0.00186,67269.0,67268.0,0.3525456]
[1718141712559,0.00186,67269.0,67268.0,0.4326456]
[1718141714008,0.00186,67269.0,67268.0,0.55185385]
[1718141717008,0.00086,67269.0,67268.0,0.55185385]
[1718141717411,0.00086,67269.0,67268.0,0.63923924]
[1718141717598,0.00086,67269.0,67268.0,0.79423924]
[1718141722954,0.00086,67269.0,67268.0,0.79059204]
[1718141723597,0.00086,67269.0,67268.0,0.89334352]
[1718141725967,0.00086,67269.0,67268.0,0.83507732]
[1718141726386,0.00086,67269.0,67268.0,0.79059204]
[1718141726611,0.00086,67269.0,67268.0,0.83507732]
[1718141727054,0.00086,67269.0,67268.0,0.79059204]
[1718141729782,0.00086,67269.0,67268.0,0.83507732]
[1718141730027,0.00086,67269.0,67268.0,0.79059204]
[1718141730990,0.00086,67269.0,67268.0,0.79153804]
[1718141731817,0.00086,67269.0,67268.0,0.80079073]
[1718141732977,0.00086,67269.0,67268.0,0.72209073]
[1718141733182,0.00086,67269.0,67268.0,0.96069073]
[1718141733826,0.00086,67269.0,67268.0,1.00517601]
[1718141734259,0.00086,67269.0,67268.0,0.96069073]
[1718141734461,0.00086,67269.0,67268.0,0.87330534]
[1718141738162,0.00086,67269.0,67268.0,0.75774429]
[1718141738364,0.00086,67269.0,67268.0,0.87357702]
[1718141738655,0.00086,67269.0,67268.0,0.91802397]
[1718141738854,0.00086,67269.0,67268.0,0.8735671]
[1718141739634,0.00086,67269.0,67268.0,0.91801405]
[1718141739845,0.00086,67269.0,67268.0,0.8735671]
[1718141740252,0.00086,67269.0,67268.0,0.91801405]
[1718141740665,0.00086,67269.0,67268.0,0.8735671]
[1718141740870,0.00086,67269.0,67268.0,0.91801105]
[1718141742391,0.00086,67269.0,67268.0,0.8735671]
[1718141745351,0.00086,67269.0,67268.0,1.00931253]
[1718141746541,0.00086,67269.0,67268.0,1.05373716]
[1718141746861,0.00086,67269.0,67268.0,1.00931253]
[1718141749149,0.00086,67269.0,67268.0,0.89348972]
[1718141749356,0.00086,67269.0,67268.0,1.009453]
[1718141751167,0.00086,67269.0,67268.0,1.07612502]
[1718141755525,0.00086,67269.0,67268.0,0.94037959]
[1718141758193,0.00086,67269.0,67268.0,0.87370757]
[1718141761307,0.00086,67269.0,67268.0,0.87366622]
[1718141762356,0.00086,67269.0,67268.0,0.96256225]
[1718141764245,0.00086,67269.0,67268.0,0.87366622]
[1718141764655,0.00086,67269.0,67268.0,0.96256225]
[1718141764861,0.00086,67269.0,67268.0,1.09199678]
[1718141772737,0.00086,67269.0,67268.0,1.09210427]
[1718141778100,0.00086,67269.0,67268.0,1.00320824]
[1718141778559,0.00086,67269.0,67268.0,0.87377371]
[1718141786003,0.00086,67269.0,67268.0,0.9319755]
[1718141788876,0.00086,67269.0,67268.0,0.9319829]
[1718141790423,0.00086,67269.0,67268.0,0.92651222]
[1718141800382,0.00086,67269.0,67268.0,0.93814938]
[1718141801541,0.00086,67269.0,67268.0,1.07405544]
[1718141802228,0.00086,67269.0,67268.0,1.23499254]
[1718141802458,0.00086,67269.0,67268.0,1.09908648]
[1718141802679,0.00086,67269.0,67268.0,1.01008725]
[1718141806795,0.00086,67269.0,67268.0,1.00977135]
[1718141810440,0.00086,67269.0,67268.0,1.00990496]
[1718141811021,0.00086,67269.0,67268.0,1.13788711]
[1718141815222,0.00086,67269.0,67268.0,1.28654611]
[1718141815423,0.00086,67269.0,67268.0,1.04794611]
[1718141815640,0.00086,67269.0,67268.0,1.29774611]
[1718141817852,0.00086,67269.0,67268.0,1.40899969]
[1718141818968,0.00086,67269.0,67268.0,1.29774611]
[1718141820274,0.00086,67269.0,67268.0,1.29778688]
[1718141823264,0.00086,67269.0,67268.0,1.29768588]
[1718141826034,0.00086,67269.0,67268.0,1.40888206]
[1718141827130,0.00086,67269.0,67268.0,1.29768588]
[1718141827333,0.00086,67269.0,67268.0,1.40887375]
[1718141827739,0.00086,67269.0,67268.0,1.41887375]
[1718141828127,0.00086,67269.0,67268.0,1.4190247]
[1718141828538,0.00086,67269.0,67268.0,1.30783683]
[1718141829166,0.00086,67269.0,67268.0,1.30784618]
[1718141830211,0.00086,67269.0,67268.0,1.24967024]
[1718141830419,0.00086,67269.0,67268.0,1.30784829]
[1718141831287,0.00086,67269.0,67268.0,1.30684829]
[1718141831643,0.00086,67269.0,67268.0,1.31484829]
[1718141831850,0.00086,67269.0,67268.0,1.31487874]
[1718141832801,0.00086,67269.0,67268.0,1.31987874]
[1718141833631,0.00086,67269.0,67268.0,1.26167024]
[1718141833758,0.00086,67269.0,67268.0,1.3198806]
[1718141837353,0.00086,67277.0,67276.0,0.1673063]
[1718141837555,0.00086,67277.0,67276.0,0.54739302]
[1718141837755,0.00086,67277.0,67276.0,0.57079686]
[1718141838631,0.00486,67277.0,67276.0,0.57079686]
[1718141838839,0.00786,67277.0,67276.0,0.57079686]
[1718141844957,0.00786,67277.0,67276.0,0.61525945]
[1718141845159,0.00786,67277.0,67276.0,0.61527681]
[1718141846402,0.00786,67277.0,67276.0,0.58290618]
[1718141849457,0.00786,67277.0,67276.0,0.53842623]
[1718141851782,0.00786,67277.0,67276.0,0.53855701]
[1718141852006,0.00786,67277.0,67276.0,0.58303981]
[1718141852383,0.00786,67277.0,67276.0,0.53855701]
[1718141852780,0.00786,67277.0,67276.0,0.58303838]
[1718141853369,0.00786,67277.0,67276.0,0.53855701]
[1718141853595,0.23626,67277.0,67276.0,0.53855701]
[1718141853877,0.23626,67277.0,67276.0,0.58303893]
[1718141854049,0.23626,67277.0,67276.0,0.53855701]
[1718141854680,0.23626,67277.0,67276.0,0.60528122]
[1718141855997,0.23626,67277.0,67276.0,0.53855701]
[1718141856419,0.08356,67277.0,67276.0,0.53855701]
[1718141856630,0.00786,67277.0,67276.0,0.53855701]
[1718141856861,0.00786,67277.0,67276.0,0.83025447]
[1718141856997,0.00786,67277.0,67276.0,1.05105543]
[1718141857221,0.00786,67277.0,67276.0,1.38095543]
[1718141857421,0.00786,67277.0,67276.0,1.37095543]
[1718141857653,0.00786,67277.0,67276.0,1.38095543]
[1718141858017,0.00086,67277.0,67276.0,1.38095543]
[1718141858218,0.08046,67277.0,67276.0,1.1620509]
[1718141858446,0.08046,67277.0,67276.0,1.05389547]
[1718141858644,0.00086,67277.0,67276.0,1.05389547]
[1718141858863,0.00086,67277.0,67276.0,1.1800509]
[1718141859472,0.00086,67277.0,67276.0,1.06889547]
[1718141859699,0.00086,67277.0,67276.0,1.05889547]
[1718141859898,0.00086,67277.0,67276.0,1.06889547]
[1718141860115,0.00086,67277.0,67276.0,1.05389547]
[1718141860531,0.00086,67277.0,67276.0,1.05589547]
[1718141860743,0.00086,67277.0,67276.0,1.05889547]
[1718141860965,0.00086,67277.0,67276.0,1.06889547]
[1718141861168,0.00086,67277.0,67276.0,1.1800477]
[1718141861594,0.00086,67277.0,67276.0,1.1700477]
[1718141861835,0.00086,67277.0,67276.0,1.0578619]
[1718141862037,0.00086,67277.0,67276.0,1.16750079]
[1718141862433,0.00086,67277.0,67276.0,1.40870079]
[1718141863016,0.00086,67277.0,67276.0,1.29754856]
[1718141863443,0.00086,67277.0,67276.0,1.05634856]
[1718141864057,0.00086,67277.0,67276.0,1.29454856]
[1718141864274,0.00086,67277.0,67276.0,1.29439623]
[1718141865298,0.00086,67277.0,67276.0,1.29466604]
[1718141866670,0.00086,67277.0,67276.0,1.28666604]
[1718141866878,0.00086,67277.0,67276.0,1.29766604]
[1718141867075,0.00186,67277.0,67276.0,1.30666604]
[1718141867675,0.00086,67277.0,67276.0,1.29766604]
[1718141868060,0.00086,67277.0,67276.0,1.30666604]
[1718141868295,0.00086,67277.0,67276.0,1.19675734]
[1718141868506,0.00086,67277.0,67276.0,1.30624768]
[1718141871433,0.00086,67277.0,67276.0,1.30639143]
[1718141878273,0.00086,67277.0,67276.0,1.40639143]
[1718141878480,0.00086,67277.0,67276.0,1.70367343]
[1718141879701,0.00086,67277.0,67276.0,1.64548462]
[1718141879935,0.00086,67277.0,67276.0,1.70363173]
[1718141881661,0.00086,67277.0,67276.0,1.63163173]
[1718141882060,0.00086,67277.0,67276.0,1.70363173]
[1718141882703,0.00086,67277.0,67276.0,1.64548462]
[1718141882917,0.00086,67277.0,67276.0,1.70363038]
[1718141885022,0.00086,67277.0,67276.0,1.59399629]
[1718141885227,0.00086,67277.0,67276.0,1.70315371]
[1718141889756,0.00086,67277.0,67276.0,1.703051]
[1718141900575,0.00086,67277.0,67276.0,1.59399629]
[1718141900744,0.00086,67277.0,67276.0,1.70293902]
[1718141901163,0.00086,67277.0,67276.0,1.70291558]
[1718141901787,0.00086,67277.0,67276.0,1.70291499]
[1718141903856,0.00086,67277.0,67276.0,1.83630348]
[1718141904056,0.00086,67277.0,67276.0,1.70291499]
[1718141904366,0.00086,67277.0,67276.0,1.83630348]
[1718141904755,0.00086,67277.0,67276.0,1.83632307]
[1718141905244,0.00086,67277.0,67276.0,1.70291791]
[1718141916635,0.00086,67277.0,67276.0,1.46471791]
[1718141917428,0.00086,67277.0,67276.0,1.35577518]
[1718141917769,0.00086,67277.0,67276.0,1.46524679]
[1718141927607,0.00086,67277.0,67276.0,1.40712214]
[1718141927807,0.00086,67277.0,67276.0,1.46530811]
[1718141928555,0.00086,67277.0,67276.0,1.81610811]
[1718141928768,0.00086,67277.0,67276.0,1.89810811]
[1718141928977,0.00086,67277.0,67276.0,1.92432261]
[1718141929187,0.00086,67277.0,67276.0,2.12149724]
[1718141929412,0.00086,67277.0,67276.0,2.13311833]
[1718141929614,0.00086,67277.0,67276.0,2.48948694]
[1718141929845,0.00086,67277.0,67276.0,2.48048694]
[1718141930078,0.00186,67277.0,67276.0,2.27266506]
[1718141930302,0.00186,67277.0,67276.0,2.13311833]
[1718141930546,0.00086,67277.0,67276.0,2.12411833]
[1718141931431,0.00086,67277.0,67276.0,1.86880641]
[1718141931655,0.00086,67277.0,67276.0,1.92698938]
[1718141932085,0.00086,67277.0,67276.0,1.93498938]
[1718141932292,0.00086,67277.0,67276.0,2.13211533]
[1718141932601,0.00086,67277.0,67276.0,2.42939733]
[1718141932804,0.00086,67277.0,67276.0,2.78576594]
[1718141934289,0.00086,67277.0,67276.0,2.58576594]
[1718141935298,0.00086,67277.0,67276.0,2.38863999]
[1718141937087,0.00086,67277.0,67276.0,2.38805219]
[1718141940217,0.00086,67277.0,67276.0,2.38807375]
[1718141941505,0.00086,67277.0,67276.0,2.38807948]
[1718141942113,0.00086,67277.0,67276.0,2.58807948]
[1718141942674,0.00086,67277.0,67276.0,2.58807575]
[1718141946459,0.00086,67277.0,67276.0,2.78515461]
[1718141946931,0.00086,67277.0,67276.0,2.81593223]
[1718141947132,0.00086,67277.0,67276.0,2.78515461]
[1718141947338,0.00086,67277.0,67276.0,2.7851193]
[1718141954575,0.00086,67277.0,67276.0,2.7131193]
[1718141954775,0.00086,67277.0,67276.0,2.7851193]
[1718141954988,0.00086,67277.0,67276.0,2.51345896]
[1718141955132,0.00086,67277.0,67276.0,2.78509329]
[1718141956343,0.00086,67277.0,67276.0,2.58801443]
[1718141957691,0.00086,67282.0,67281.0,1.0823363]
[1718141957892,0.00086,67282.0,67281.0,1.51776381]
[1718141958105,0.00086,67282.0,67281.0,1.83809895]
[1718141958516,0.00086,67282.0,67281.0,1.89754295]
[1718141958758,0.00086,67282.0,67281.0,1.89761694]
[1718141958969,0.00086,67282.0,67281.0,1.90661694]